bitfinex-derivatives/quotes_BTCF0:USTF0_20230701
["timestamp","ask_amount","ask_price","bid_price","bid_amount"]
[1688176130960,1.0751,30465.0,30463.0,0.019703]
[1688176131164,0.372002,30464.0,30463.0,0.019703]
[1688176131574,0.41375057,30464.0,30463.0,0.019703]
[1688176131762,0.41375057,30464.0,30463.0,0.372103]
[1688176131763,0.41655057,30464.0,30463.0,0.372103]
[1688176132066,0.41655057,30464.0,30463.0,0.39811817]
[1688176132269,0.00466943,30464.0,30463.0,0.39811817]
[1688176134272,0.00466943,30464.0,30463.0,0.70301817]
[1688176134859,0.00049239,30467.0,30463.0,1.05811817]
[1688176135055,0.059096,30470.0,30466.0,0.71]
[1688176135264,0.02616612,30472.0,30469.0,0.3551]
[1688176135567,0.019696,30472.0,30471.0,0.374796]
[1688176135770,0.019696,30472.0,30471.0,0.3551]
[1688176136157,0.03792569,30472.0,30471.0,0.3551]
[1688176136372,0.019696,30472.0,30471.0,0.374797]
[1688176138083,0.03792569,30472.0,30471.0,0.374797]
[1688176138683,0.019696,30472.0,30471.0,0.374797]
[1688176139075,0.03792569,30472.0,30471.0,0.374797]
[1688176139281,0.03792569,30472.0,30471.0,0.40059527]
[1688176140489,0.019696,30472.0,30471.0,0.40059527]
[1688176141691,0.03792569,30472.0,30471.0,0.40059527]
[1688176142281,0.019696,30472.0,30471.0,0.40059527]
[1688176142491,0.02919006,30472.0,30471.0,0.40059527]
[1688176143481,0.04741975,30472.0,30471.0,0.40059527]
[1688176144795,0.02919006,30472.0,30471.0,0.40059527]
[1688176145977,0.04741975,30472.0,30471.0,0.40059527]
[1688176147894,0.02919006,30472.0,30471.0,0.40059527]
[1688176148093,0.04741975,30472.0,30471.0,0.40059527]
[1688176148595,0.02919006,30472.0,30471.0,0.40059527]
[1688176149293,0.04741975,30472.0,30471.0,0.40059527]
[1688176149492,0.02919006,30472.0,30471.0,0.40059527]
[1688176150295,0.04741975,30472.0,30471.0,0.40059527]
[1688176150796,0.02919006,30472.0,30471.0,0.40059527]
[1688176152397,0.0662692,30472.0,30471.0,0.40059527]
[1688176152583,0.4185692,30472.0,30471.0,0.04549527]
[1688176152897,0.47269906,30472.0,30468.0,0.00049226]
[1688176153096,1.0751,30469.0,30468.0,0.00049226]
[1688176153309,1.094798,30469.0,30468.0,0.00049226]
[1688176153494,1.31667548,30469.0,30468.0,0.00049226]
[1688176153798,1.33552493,30469.0,30468.0,0.00049226]
[1688176154200,1.44333558,30469.0,30468.0,0.00049226]
[1688176155494,0.04367914,30468.0,30467.0,0.02619501]
[1688176155693,0.0066,30466.0,30462.0,0.3551]
[1688176155888,0.735602,30463.0,30462.0,0.3551]
[1688176156104,0.77268114,30463.0,30462.0,0.3551]
[1688176156501,0.77268114,30463.0,30462.0,0.374803]
[1688176157500,0.77268114,30463.0,30462.0,0.3551]
[1688176157894,0.77268114,30463.0,30462.0,0.38096956]
[1688176158200,0.77268114,30463.0,30462.0,0.02586956]
[1688176158592,0.77268114,30463.0,30461.0,0.3524]
[1688176158901,0.39217914,30462.0,30461.0,0.3524]
[1688176159098,0.41188214,30462.0,30461.0,0.3524]
[1688176159793,0.41188214,30462.0,30461.0,0.372103]
[1688176160493,0.39303269,30462.0,30461.0,0.372103]
[1688176161191,0.41188214,30462.0,30461.0,0.372103]
[1688176161801,0.41188214,30462.0,30460.0,0.02668656]
[1688176161998,0.7131,30461.0,30460.0,0.02668656]
[1688176162203,0.76988314,30461.0,30459.0,0.00049241]
[1688176162401,0.3551,30460.0,30459.0,0.02019841]
[1688176162700,0.41188414,30460.0,30459.0,0.02019841]
[1688176162998,0.05678414,30460.0,30459.0,0.39825459]
[1688176163203,0.05678414,30460.0,30459.0,0.37259841]
[1688176164102,0.05678414,30460.0,30459.0,0.37560334]
[1688176165094,0.41028414,30460.0,30459.0,0.37560334]
[1688176170108,0.77108414,30460.0,30459.0,0.37560334]
[1688176171610,0.41758414,30460.0,30459.0,0.37560334]
[1688176171795,0.77268414,30460.0,30459.0,0.37560334]
[1688176173911,0.735605,30460.0,30459.0,0.37560334]
[1688176174514,0.75383469,30460.0,30459.0,0.37560334]
[1688176174812,0.77268414,30460.0,30459.0,0.37560334]
[1688176175709,0.735605,30460.0,30459.0,0.37560334]
[1688176175911,0.75383469,30460.0,30459.0,0.37560334]
[1688176177813,0.39303469,30460.0,30459.0,0.37560334]
[1688176178010,0.75383469,30460.0,30459.0,0.37560334]
[1688176179502,0.77268414,30460.0,30459.0,0.37560334]
[1688176181715,0.41188414,30460.0,30459.0,0.37560334]
[1688176181912,0.77268414,30460.0,30459.0,0.37560334]
[1688176182716,0.75383469,30460.0,30459.0,0.37560334]
[1688176183315,0.3608,30460.0,30459.0,0.37560334]
[1688176185114,0.380505,30460.0,30459.0,0.37560334]
[1688176187524,0.3608,30460.0,30459.0,0.37560334]
[1688176187719,0.380506,30460.0,30459.0,0.37560334]
[1688176189016,0.3608,30460.0,30459.0,0.40189387]
[1688176189515,0.410061,30462.0,30459.0,0.40189387]
[1688176189723,0.3608,30462.0,30461.0,0.3551]
[1688176189922,0.3608,30462.0,30461.0,0.374804]
[1688176190517,0.049255,30465.0,30461.0,0.735604]
[1688176190820,0.049255,30465.0,30464.0,0.3551]
[1688176191034,0.049255,30465.0,30464.0,0.374802]
[1688176191214,0.06748469,30465.0,30464.0,0.374802]
[1688176191519,0.049255,30465.0,30464.0,0.374802]
[1688176194115,0.049255,30465.0,30464.0,0.675602]
[1688176199232,0.06616541,30466.0,30464.0,0.675602]
[1688176199528,0.00049241,30466.0,30465.0,0.3551]
[1688176199725,0.00049241,30466.0,30465.0,0.374801]
[1688176199927,0.00440183,30466.0,30465.0,0.374801]
[1688176200221,0.3673833,30470.0,30465.0,0.374801]
[1688176200222,0.0457833,30470.0,30465.0,0.374801]
[1688176200435,0.0457833,30470.0,30469.0,0.374798]
[1688176200819,0.0260843,30470.0,30469.0,0.374798]
[1688176201023,0.55668335,30471.0,30469.0,0.374798]
[1688176201224,0.55668335,30471.0,30470.0,0.374798]
[1688176201826,0.51728635,30471.0,30470.0,0.374798]
[1688176202023,0.34691689,30471.0,30470.0,0.374798]
[1688176203428,0.38399603,30471.0,30470.0,0.374798]
[1688176203828,0.56215569,30471.0,30470.0,0.374798]
[1688176204332,0.36576634,30471.0,30470.0,0.374798]
[1688176204737,0.38399603,30471.0,30470.0,0.374798]
[1688176205033,0.4132963,30471.0,30470.0,0.374798]
[1688176205535,0.39444685,30471.0,30470.0,0.374798]
[1688176206122,0.63207252,30471.0,30470.0,0.374798]
[1688176210728,0.40277868,30471.0,30470.0,0.374798]
[1688176211137,0.37675879,30471.0,30470.0,0.374798]
[1688176212535,0.32922883,30471.0,30470.0,0.374798]
[1688176216630,0.34807828,30471.0,30470.0,0.374798]
[1688176217738,0.32922883,30471.0,30470.0,0.374798]
[1688176221340,0.00833183,30471.0,30470.0,0.374798]
[1688176224750,0.02802983,30471.0,30470.0,0.374798]
[1688176232548,0.22449177,30471.0,30470.0,0.374798]
[1688176235250,0.02802983,30471.0,30470.0,0.374798]
[1688176237449,0.38312983,30471.0,30470.0,0.374798]
[1688176237854,0.42020897,30471.0,30470.0,0.374798]
[1688176238555,0.40197928,30471.0,30470.0,0.374798]
[1688176238944,0.42020897,30471.0,30470.0,0.374798]
[1688176240853,0.38312983,30471.0,30470.0,0.374798]
[1688176241057,0.37858986,30471.0,30470.0,0.374798]
[1688176241549,0.39681955,30471.0,30470.0,0.374798]
[1688176241752,0.415669,30471.0,30470.0,0.3551]
[1688176242359,0.61213094,30471.0,30470.0,0.3551]
[1688176242659,0.46319896,30471.0,30470.0,0.374798]
[1688176244365,0.53109929,30471.0,30470.0,0.374798]
[1688176244660,0.79340266,30471.0,30470.0,0.374798]
[1688176247257,0.77455321,30471.0,30470.0,0.374798]
[1688176248555,0.77455321,30471.0,30470.0,0.3551]
[1688176248862,0.53109929,30471.0,30470.0,0.3551]
[1688176250059,0.82399896,30471.0,30470.0,0.3551]
[1688176252170,0.82399896,30471.0,30470.0,0.374798]
[1688176255062,0.82399896,30471.0,30470.0,0.019698]
[1688176256264,0.776469,30471.0,30470.0,0.019698]
[1688176256463,0.82400174,30471.0,30469.0,0.3551]
[1688176256768,0.60595166,30470.0,30469.0,0.3551]
[1688176256970,0.90915166,30470.0,30469.0,0.3551]
[1688176257174,0.91296361,30470.0,30469.0,0.3551]
[1688176259277,0.91296361,30470.0,30469.0,0.374799]
[1688176264471,0.91576361,30470.0,30469.0,0.372099]
[1688176265179,0.99617763,30470.0,30469.0,0.019699]
[1688176269581,0.97794794,30470.0,30469.0,0.019699]
[1688176270279,0.99617763,30470.0,30469.0,0.019699]
[1688176272582,0.91573799,30470.0,30469.0,0.019699]
[1688176273283,0.71888909,30470.0,30469.0,0.019699]
[1688176274586,0.91573799,30470.0,30469.0,0.019699]
[1688176274975,0.71888909,30470.0,30469.0,0.019699]
[1688176277388,0.7006594,30470.0,30469.0,0.019699]
[1688176278373,0.71888909,30470.0,30469.0,0.019699]
[1688176278985,0.91573799,30470.0,30469.0,0.019699]
[1688176280187,1.09690333,30470.0,30469.0,0.019699]
[1688176280875,1.09690322,30470.0,30469.0,0.019699]
[1688176281493,1.09690322,30470.0,30468.0,0.72985562]
[1688176281682,0.43681158,30469.0,30468.0,0.04615562]
[1688176281991,0.4603809,30469.0,30468.0,0.02645562]
[1688176282192,0.72295921,30469.0,30467.0,0.00049229]
[1688176282393,0.65204421,30468.0,30467.0,0.00049229]
[1688176282579,0.68912335,30468.0,30467.0,0.00049229]
[1688176282780,0.4632837,30468.0,30467.0,0.04637123]
[1688176283083,0.4632837,30468.0,30467.0,0.02019229]
[1688176283278,1.08666201,30468.0,30467.0,0.02019229]
[1688176283483,0.8240837,30468.0,30467.0,0.02019229]
[1688176285092,0.8240837,30468.0,30467.0,0.37529229]
[1688176287383,1.05373526,30468.0,30467.0,0.37529229]
[1688176287595,0.77655126,30468.0,30467.0,0.37529229]
[1688176291096,0.77655126,30468.0,30467.0,0.35559229]
[1688176292291,0.97339567,30468.0,30467.0,0.35559229]
[1688176293101,0.77655126,30468.0,30467.0,0.35559229]
[1688176294302,0.97339567,30468.0,30467.0,0.35559229]
[1688176294901,0.97339567,30468.0,30467.0,0.37529229]
[1688176295203,0.82408794,30468.0,30467.0,0.02019229]
[1688176295395,1.05369825,30468.0,30467.0,0.02019229]
[1688176296391,0.82021582,30468.0,30467.0,0.02019229]
[1688176300010,1.04980431,30468.0,30467.0,0.02019229]
[1688176300194,0.82021582,30468.0,30467.0,0.02019229]
[1688176301104,1.04980642,30468.0,30467.0,0.02019229]
[1688176301304,1.38244086,30468.0,30459.0,0.12619395]
[1688176301608,0.3535,30460.0,30459.0,0.721717]
[1688176301904,0.66143607,30460.0,30456.0,0.424807]
[1688176302093,0.66143607,30460.0,30456.0,0.40054936]
[1688176302094,0.374807,30457.0,30456.0,0.40054936]
[1688176302297,0.374807,30457.0,30456.0,0.71074936]
[1688176302497,0.41188614,30457.0,30456.0,0.71074936]
[1688176303004,0.41188614,30457.0,30456.0,0.69104236]
[1688176303603,0.41188614,30457.0,30456.0,0.71074936]
[1688176305211,0.05678614,30457.0,30456.0,0.71074936]
[1688176307514,0.019707,30457.0,30456.0,0.71074936]
[1688176307810,0.019707,30457.0,30456.0,0.71623778]
[1688176309306,0.05678614,30457.0,30456.0,0.71623778]
[1688176311512,0.03855645,30457.0,30456.0,0.71623778]
[1688176312304,0.05678614,30457.0,30456.0,0.71623778]
[1688176314118,0.03855645,30457.0,30456.0,0.71623778]
[1688176314316,0.05678614,30457.0,30456.0,0.71623778]
[1688176314817,0.03855645,30457.0,30456.0,0.71623778]
[1688176315817,0.05678614,30457.0,30456.0,0.71623778]
[1688176316023,0.03855645,30457.0,30456.0,0.71623778]
[1688176318008,0.05678614,30457.0,30456.0,0.71623778]
[1688176318719,0.03855645,30457.0,30456.0,0.71623778]
[1688176320216,0.019707,30457.0,30456.0,0.71623778]
[1688176321816,0.03793669,30457.0,30456.0,0.71623778]
[1688176322114,0.05678614,30457.0,30456.0,0.71623778]
[1688176322519,0.03855645,30457.0,30456.0,0.71623778]
[1688176323924,0.019707,30457.0,30456.0,0.71623778]
[1688176324824,0.03855645,30457.0,30456.0,0.71623778]
[1688176328120,0.05678614,30457.0,30456.0,0.71623778]
[1688176328329,0.03855645,30457.0,30456.0,0.71623778]
[1688176329228,0.05678614,30457.0,30456.0,0.71623778]
[1688176329816,0.03855645,30457.0,30456.0,0.71623778]
[1688176330621,0.372007,30458.0,30456.0,0.71623778]
[1688176330826,0.372007,30458.0,30457.0,0.3551]
[1688176331028,0.372007,30458.0,30457.0,0.38022234]
[1688176331928,0.019707,30458.0,30457.0,0.38022234]
[1688176333722,0.03855645,30458.0,30457.0,0.38022234]
[1688176334520,0.03855645,30458.0,30457.0,0.74102234]
[1688176334929,0.019707,30458.0,30457.0,0.74102234]
[1688176337126,0.413422,30459.0,30457.0,0.74102234]
[1688176337127,0.3543,30459.0,30457.0,0.74102234]
[1688176337329,0.00049251,30460.0,30458.0,0.3551]
[1688176337630,0.00049251,30460.0,30459.0,0.686006]
[1688176337833,0.00049251,30460.0,30459.0,0.69140618]
[1688176346137,0.00049251,30460.0,30459.0,1.05220618]
[1688176346638,0.00049251,30460.0,30459.0,0.69140618]
[1688176346933,0.00049251,30460.0,30459.0,1.05220618]
[1688176350239,0.00049251,30460.0,30459.0,0.69140618]
[1688176350534,0.00049251,30460.0,30459.0,1.05220618]
[1688176372345,0.00049251,30460.0,30459.0,1.04976409]
[1688176375751,0.00049251,30460.0,30459.0,0.68896409]
[1688176375947,0.00049251,30460.0,30459.0,1.41056409]
[1688176377754,0.00049251,30460.0,30459.0,1.47623974]
[1688176378054,0.00049251,30460.0,30459.0,1.47328165]
[1688176378856,0.00049251,30460.0,30459.0,0.75168165]
[1688176379152,0.00049251,30460.0,30459.0,1.47328165]
[1688176380760,0.00049251,30460.0,30459.0,1.407606]
[1688176382655,0.00049251,30460.0,30459.0,1.50612644]
[1688176385263,0.00049251,30460.0,30459.0,1.47319595]
[1688176386364,0.3096,30463.0,30461.0,0.05]
[1688176386552,0.3096,30463.0,30462.0,1.15318889]
[1688176387166,0.3096,30463.0,30462.0,1.47748889]
[1688176388766,0.3096,30463.0,30462.0,1.411904]
[1688176391159,0.3096,30463.0,30462.0,1.056804]
[1688176391360,0.32844945,30463.0,30462.0,1.056804]
[1688176392074,0.3096,30463.0,30462.0,1.056804]
[1688176392659,0.3096,30463.0,30462.0,1.12238889]
[1688176393974,0.3096,30463.0,30462.0,1.056804]
[1688176395575,0.329303,30463.0,30462.0,0.75896961]
[1688176395973,0.72518214,30463.0,30462.0,0.02646561]
[1688176396363,0.72518214,30463.0,30462.0,0.00320111]
[1688176396870,0.72518214,30463.0,30460.0,0.3551]
[1688176397070,0.335903,30463.0,30462.0,0.00319966]
[1688176397278,0.691003,30463.0,30461.0,0.00319909]
[1688176397467,0.3551,30462.0,30460.0,0.374805]
[1688176397669,0.374805,30461.0,30460.0,0.374805]
[1688176398176,0.41188414,30461.0,30460.0,0.374805]
[1688176398978,0.41188414,30461.0,30460.0,0.40145113]
[1688176403489,0.39365445,30461.0,30460.0,0.40145113]
[1688176405087,0.39205445,30461.0,30460.0,0.40145113]
[1688176405787,0.41028414,30461.0,30460.0,0.40145113]
[1688176412704,0.41188414,30461.0,30460.0,0.02985377]
[1688176419513,0.41188414,30461.0,30460.0,0.00319198]
[1688176419697,0.41188414,30461.0,30460.0,0.0055443]
[1688176420303,0.41188414,30461.0,30459.0,0.02616221]
[1688176420499,1.0361,30460.0,30459.0,0.02616221]
[1688176420706,1.09288414,30460.0,30459.0,0.00049241]
[1688176421309,1.09288414,30460.0,30459.0,0.00603376]
[1688176423515,1.09288414,30460.0,30459.0,0.00049241]
[1688176430617,1.09288414,30460.0,30459.0,0.00601302]
[1688176430915,0.73208414,30460.0,30459.0,0.00601302]
[1688176431122,1.09288414,30460.0,30459.0,0.00601302]
[1688176431323,1.09288414,30460.0,30459.0,0.00551879]
[1688176431626,1.09288414,30460.0,30454.0,0.3551]
[1688176431821,0.3551,30455.0,30454.0,0.3551]
[1688176432021,0.41188714,30455.0,30454.0,0.3551]
[1688176432725,0.71768714,30455.0,30454.0,0.3551]
[1688176433615,0.71768714,30455.0,30454.0,0.38171049]
[1688176434028,0.71768714,30455.0,30454.0,0.40141849]
[1688176435218,0.71768714,30455.0,30454.0,0.04631849]
[1688176438727,0.71768714,30455.0,30454.0,0.05044019]
[1688176438922,0.680608,30455.0,30454.0,0.05044019]
[1688176439123,0.71768714,30455.0,30454.0,0.05044019]
[1688176439325,0.019708,30455.0,30454.0,0.40554019]
[1688176439930,0.40437,30456.0,30454.0,0.40554019]
[1688176440236,0.40437,30456.0,30455.0,0.3551]
[1688176440426,0.374807,30456.0,30455.0,0.374807]
[1688176440626,0.374807,30456.0,30455.0,0.37911029]
[1688176441126,0.41188614,30456.0,30455.0,0.37911029]
[1688176441428,0.39365645,30456.0,30455.0,0.70841029]
[1688176443833,0.37394945,30456.0,30455.0,0.70841029]
[1688176444030,0.3551,30456.0,30455.0,0.70841029]
[1688176445034,0.00049253,30458.0,30455.0,1.06921029]
[1688176445233,0.00049253,30458.0,30457.0,0.3551]
[1688176445422,0.02019853,30458.0,30457.0,0.374807]
[1688176445626,0.02019853,30458.0,30457.0,0.37909899]
[1688176446137,0.00049253,30458.0,30457.0,0.37909899]
[1688176450340,0.02019753,30458.0,30457.0,0.37909899]
[1688176451339,0.03904698,30458.0,30457.0,0.37909899]
[1688176454248,0.41237667,30458.0,30457.0,0.02399899]
[1688176455152,0.39414698,30458.0,30457.0,0.02399899]
[1688176455657,0.41237667,30458.0,30457.0,0.02399899]
[1688176456652,0.41237667,30458.0,30457.0,0.00429199]
[1688176457059,0.72197667,30458.0,30455.0,0.743522]
[1688176457259,0.3551,30456.0,30455.0,0.743522]
[1688176457461,0.374807,30456.0,30455.0,0.743522]
[1688176457757,0.374807,30456.0,30455.0,0.74770402]
[1688176457961,0.41188614,30456.0,30455.0,0.74770402]
[1688176459462,0.41188614,30456.0,30455.0,0.39260402]
[1688176462757,0.41188614,30456.0,30455.0,0.35319002]
[1688176463564,0.39365645,30456.0,30455.0,0.35319002]
[1688176463770,0.39365645,30456.0,30455.0,0.71399002]
[1688176470377,0.374807,30456.0,30455.0,0.71399002]
[1688176470673,0.3551,30457.0,30455.0,1.06909002]
[1688176470970,0.3551,30457.0,30456.0,0.372106]
[1688176471165,0.374806,30457.0,30456.0,0.372106]
[1688176471354,0.374806,30457.0,30456.0,0.37627785]
[1688176472665,0.374806,30457.0,30456.0,0.73707785]
[1688176475076,0.374806,30457.0,30456.0,0.37627785]
[1688176475279,0.374806,30457.0,30456.0,0.73707785]
[1688176477879,0.3551,30457.0,30456.0,0.73707785]
[1688176480973,0.39205545,30457.0,30456.0,0.73977785]
[1688176482771,0.39205545,30457.0,30456.0,0.80536274]
[1688176482977,0.39205545,30457.0,30456.0,0.73977785]
[1688176484977,0.373206,30457.0,30456.0,0.73977785]
[1688176486082,0.373206,30457.0,30456.0,0.37897785]
[1688176486273,0.373206,30457.0,30456.0,0.73977785]
[1688176486980,0.39205545,30457.0,30456.0,0.73977785]
[1688176490771,0.373206,30457.0,30456.0,0.73977785]
[1688176491674,0.373206,30457.0,30456.0,0.80536274]
[1688176492373,0.39205545,30457.0,30456.0,0.80536274]
[1688176495175,0.373206,30457.0,30456.0,0.45026274]
[1688176497693,0.373206,30457.0,30456.0,0.38467785]
[1688176499082,0.39205545,30457.0,30456.0,0.38467785]
[1688176500287,0.41028514,30457.0,30456.0,0.38467785]
[1688176500483,0.39205545,30457.0,30456.0,0.38467785]
[1688176501083,0.41028514,30457.0,30456.0,0.38467785]
[1688176501474,0.39205545,30457.0,30456.0,0.38467785]
[1688176501679,0.39205545,30457.0,30456.0,0.380506]
[1688176502289,0.3607,30456.0,30454.0,0.02661049]
[1688176502490,0.39365645,30455.0,30453.0,0.3608]
[1688176502786,0.019708,30453.0,30451.0,0.06607742]
[1688176502986,0.019708,30453.0,30451.0,0.00049253]
[1688176502987,0.75278566,30452.0,30451.0,0.00049253]
[1688176503382,0.75278566,30452.0,30451.0,0.02020253]
[1688176503578,0.72388914,30452.0,30451.0,0.02020253]
[1688176503987,0.72388914,30452.0,30451.0,0.04684887]
[1688176504184,0.77101535,30452.0,30451.0,0.02020253]
[1688176505286,0.77101535,30452.0,30451.0,0.08578742]
[1688176505688,0.77101535,30452.0,30451.0,0.06607742]
[1688176506190,0.72388914,30452.0,30451.0,0.06607742]
[1688176510097,0.72388914,30452.0,30451.0,0.00049253]
[1688176514296,0.72388914,30452.0,30451.0,0.02020253]
[1688176527492,0.3543,30452.0,30451.0,0.02020253]
[1688176527698,0.049272,30454.0,30451.0,0.37530253]
[1688176527699,0.404372,30454.0,30451.0,0.37530253]
[1688176527897,0.729872,30454.0,30453.0,0.3551]
[1688176528202,0.74872145,30454.0,30453.0,0.374809]
[1688176529308,0.3551,30454.0,30453.0,0.374809]
[1688176531103,0.3551,30454.0,30453.0,0.735609]
[1688176532807,0.374808,30454.0,30453.0,0.735609]
[1688176533811,0.3551,30454.0,30453.0,0.735609]
[1688176534214,0.374808,30454.0,30453.0,0.735609]
[1688176535803,0.374809,30454.0,30453.0,0.735609]
[1688176537414,0.39365845,30454.0,30453.0,0.735609]
[1688176541122,0.39365845,30454.0,30453.0,0.380509]
[1688176541618,0.374809,30454.0,30453.0,0.380509]
[1688176544222,0.374809,30454.0,30453.0,0.44609389]
[1688176545722,0.3551,30454.0,30453.0,0.44609389]
[1688176550327,0.3551,30454.0,30453.0,0.380509]
[1688176551929,0.3551,30454.0,30453.0,0.741309]
[1688176553232,0.39217914,30454.0,30453.0,0.741309]
[1688176553632,0.3551,30454.0,30453.0,0.741309]
[1688176555027,0.3551,30454.0,30453.0,1.096409]
[1688176555629,0.35279253,30458.0,30453.0,1.16199389]
[1688176555938,0.00049253,30458.0,30457.0,0.7159]
[1688176556133,0.35559253,30458.0,30457.0,0.735607]
[1688176556822,0.35559253,30458.0,30457.0,1.036407]
[1688176557222,0.37529853,30458.0,30457.0,1.036407]
[1688176557432,0.39414798,30458.0,30457.0,1.036407]
[1688176559020,0.37529853,30458.0,30457.0,1.036407]
[1688176560031,0.41237767,30458.0,30457.0,1.036407]
[1688176560226,0.39414798,30458.0,30457.0,1.036407]
[1688176561037,0.39414798,30458.0,30457.0,0.681307]
[1688176561236,0.41237767,30458.0,30457.0,0.681307]
[1688176561430,0.41237767,30458.0,30457.0,0.320507]
[1688176563626,0.39414798,30458.0,30457.0,0.320507]
[1688176564127,0.41237767,30458.0,30457.0,0.320507]
[1688176564438,0.39414798,30458.0,30457.0,0.320507]
[1688176565220,0.41237767,30458.0,30457.0,0.320507]
[1688176566731,0.39414798,30458.0,30457.0,0.320507]
[1688176567335,0.41237767,30458.0,30457.0,0.320507]
[1688176568039,0.41237767,30458.0,30457.0,0.019707]
[1688176568238,0.41237767,30458.0,30455.0,0.3608]
[1688176568239,0.3535,30456.0,30455.0,0.3608]
[1688176568429,0.76458614,30456.0,30454.0,0.019708]
[1688176568633,0.6815,30455.0,30453.0,0.019709]
[1688176568937,0.372009,30454.0,30453.0,0.019709]
[1688176569239,0.40908814,30454.0,30453.0,0.019709]
[1688176592739,0.372009,30454.0,30453.0,0.019709]
[1688176593040,0.40908814,30454.0,30453.0,0.019709]
[1688176606243,0.39085845,30454.0,30453.0,0.019709]
[1688176606755,0.40908814,30454.0,30453.0,0.019709]
[1688176608853,0.40908814,30454.0,30453.0,0.380509]
[1688176609257,0.39085845,30454.0,30453.0,0.380509]
[1688176609447,0.40908814,30454.0,30453.0,0.380509]
[1688176610248,0.40908814,30454.0,30453.0,0.44609389]
[1688176610554,0.40908814,30454.0,30453.0,0.380509]
[1688176610744,0.40908814,30454.0,30453.0,0.44618849]
[1688176612052,0.40908814,30454.0,30453.0,0.08538849]
[1688176612242,0.40908814,30454.0,30453.0,0.44618849]
[1688176612447,0.40908814,30454.0,30453.0,0.380509]
[1688176612655,0.40908814,30454.0,30453.0,0.47888634]
[1688176612957,0.39085845,30454.0,30453.0,0.47888634]
[1688176613359,0.372009,30454.0,30453.0,0.47888634]
[1688176613650,0.372009,30454.0,30453.0,0.11808634]
[1688176613853,0.3523,30454.0,30453.0,0.47888634]
[1688176614056,0.3523,30454.0,30453.0,0.83398634]
[1688176614057,0.3551,30454.0,30453.0,0.83398634]
[1688176614258,0.00049253,30458.0,30453.0,0.83398634]
[1688176614259,0.3523,30457.0,30453.0,0.735609]
[1688176614560,0.3523,30457.0,30456.0,0.77809383]
[1688176614762,0.3523,30457.0,30456.0,0.79780083]
[1688176615060,0.3551,30457.0,30456.0,0.80130083]
[1688176615450,0.3543,30460.0,30456.0,0.83414775]
[1688176615651,0.3543,30460.0,30459.0,0.7159]
[1688176615954,0.3543,30460.0,30459.0,0.79000051]
[1688176616259,0.3543,30460.0,30459.0,1.11690051]
[1688176616962,0.35857822,30460.0,30459.0,1.11690051]
[1688176618056,0.35857822,30460.0,30459.0,1.062505]
[1688176625066,0.35937822,30460.0,30459.0,0.707405]
[1688176625367,0.00427822,30460.0,30459.0,1.062505]
[1688176625768,0.00427822,30460.0,30459.0,1.08883092]
[1688176630163,0.35657822,30460.0,30459.0,0.73373092]
[1688176631363,0.37542767,30460.0,30459.0,0.73373092]
[1688176633269,0.35657822,30460.0,30459.0,0.73373092]
[1688176634873,0.37542767,30460.0,30459.0,0.73373092]
[1688176637083,0.35657822,30460.0,30459.0,0.73373092]
[1688176638991,0.35657822,30460.0,30459.0,0.37293092]
[1688176639183,0.35657822,30460.0,30459.0,0.73373092]
[1688176644186,0.42193412,30460.0,30459.0,0.73373092]
[1688176644392,0.40370443,30460.0,30459.0,0.73373092]
[1688176644592,0.37542767,30460.0,30459.0,0.73373092]
[1688176646697,0.41336236,30460.0,30459.0,0.380505]
[1688176650799,0.41336236,30460.0,30459.0,0.019705]
[1688176651113,0.41336236,30460.0,30459.0,0.380505]
[1688176652103,0.41336236,30460.0,30459.0,0.019705]
[1688176652403,0.41336236,30460.0,30459.0,0.380505]
[1688176652903,0.39513267,30460.0,30459.0,0.380505]
[1688176653101,0.41336236,30460.0,30459.0,0.380505]
[1688176659397,0.41336236,30460.0,30459.0,0.019705]
[1688176659800,0.39513267,30460.0,30459.0,0.019705]
[1688176659999,0.41336236,30460.0,30459.0,0.019705]
[1688176667513,0.37628322,30460.0,30459.0,0.019705]
[1688176668823,0.39451291,30460.0,30459.0,0.019705]
[1688176669323,0.41336236,30460.0,30459.0,0.019705]
[1688176669716,0.39513267,30460.0,30459.0,0.019705]
[1688176669924,0.37628322,30460.0,30459.0,0.019705]
[1688176670624,0.39451291,30460.0,30459.0,0.019705]
[1688176672414,0.41336236,30460.0,30459.0,0.019705]
[1688176674130,0.39513267,30460.0,30459.0,0.019705]
[1688176674519,0.41336236,30460.0,30459.0,0.019705]
[1688176676231,0.39513267,30460.0,30459.0,0.019705]
[1688176676916,0.41336236,30460.0,30459.0,0.019705]
[1688176677122,0.39513267,30460.0,30459.0,0.019705]
[1688176677524,0.41336236,30460.0,30459.0,0.019705]
[1688176680230,0.39451291,30460.0,30459.0,0.019705]
[1688176680427,0.37628322,30460.0,30459.0,0.019705]
[1688176681431,0.41336236,30460.0,30459.0,0.019705]
[1688176682937,0.39513267,30460.0,30459.0,0.019705]
[1688176684646,0.41336236,30460.0,30459.0,0.335405]
[1688176686651,0.39513267,30460.0,30459.0,0.335405]
[1688176687645,0.37628322,30460.0,30459.0,0.335405]
[1688176689239,0.37628322,30460.0,30459.0,0.690505]
[1688176689240,0.00427822,30460.0,30459.0,0.690505]
[1688176691146,0.00427822,30460.0,30459.0,0.75617377]
[1688176691846,0.00427822,30460.0,30459.0,0.690505]
[1688176692242,0.00427822,30460.0,30459.0,0.75617377]
[1688176692849,0.02398322,30460.0,30459.0,0.690505]
[1688176693154,0.00427822,30460.0,30459.0,0.690505]
[1688176693556,0.019704,30461.0,30459.0,0.690505]
[1688176693855,0.019704,30461.0,30460.0,0.7159]
[1688176694147,0.019704,30461.0,30460.0,0.735605]
[1688176698059,0.02422957,30461.0,30460.0,0.735605]
[1688176705861,0.00452557,30461.0,30460.0,0.735605]
[1688176706057,0.00452557,30461.0,30460.0,0.80127377]
[1688176706258,0.00452557,30461.0,30460.0,0.83414575]
[1688176706559,0.05960746,30463.0,30460.0,0.83414575]
[1688176706759,0.00454569,30461.0,30460.0,0.47904575]
[1688176706955,0.05960746,30463.0,30460.0,1.19494575]
[1688176707156,0.05960746,30463.0,30462.0,0.3551]
[1688176707360,0.05960746,30463.0,30462.0,0.374803]
[1688176708163,0.05960746,30463.0,30462.0,0.692203]
[1688176709357,0.37529446,30463.0,30462.0,0.692203]
[1688176709952,0.39414391,30463.0,30462.0,0.692203]
[1688176712350,0.4123736,30463.0,30462.0,0.692203]
[1688176712557,0.39414391,30463.0,30462.0,0.692203]
[1688176713062,0.39870429,30463.0,30462.0,0.692203]
[1688176714061,0.41693398,30463.0,30462.0,0.374803]